[Event "ROU-chT 1st League 2019"]
[Site "Mamaia"]
[Date "2019.09.29"]
[Round "9.29"]
[White "Nevednichy, Vladislav"]
[Black "Daianu, Cristian-Clement"]
[Result "1/2-1/2"]
[ECO "B53"]
[WhiteElo "2522"]
[BlackElo "2206"]
[Annotator "ChessBase"]
[PlyCount "164"]
[EventDate "2019.09.21"]
[EventType "team-tourn"]
[EventCountry "ROU"]
[SourceTitle "playchess.com"]
[Source "ChessBase"]
[SourceQuality "1"]
[TimeControl "40/5400+30:1800+30"]

1. e4 {[%emt 0:00:00]} c5 {[%emt 0:02:47]} 2. Nf3 {[%emt 0:00:00]} d6 {[%emt 0:00:27]} 3. d4 {[%emt 0:00:00]} cxd4 {[%emt 0:00:04]} 4. Qxd4 {[%emt 0:00:00]} Nc6 {[%emt 0:01:29]} 5. Bb5 {[%emt 0:00:00]} Bd7 {[%emt 0:00:08]} 6. Qd3 {[%emt 0:00:12]} a6 {[%emt 0:03:35]} 7. Bxc6 {[%emt 0:00:09]} Bxc6 {[%emt 0:00:02]} 8. c4 {[%emt 0:03:35]} Nf6 {[%emt 0:07:55]} 9. Nc3 {[%emt 0:00:19]} e6 {[%emt 0:00:25]} 10. O-O {[%emt 0:00:19]} Be7 {[%emt 0:00:04]} 11. Nd4 {[%emt 0:00:47]} Rc8 {[%emt 0:02:47]} 12. b3 {[%emt 0:01:21]} O-O {[%emt 0:01:17]} 13. Bb2 {[%emt 0:00:05]} Qa5 {[%emt 0:08:39]} 14. Rfe1 {[%emt 0:04:24]} Bd7 {[%emt 0:03:05]} 15. Rad1 {[%emt 0:05:56]} Rfd8 {[%emt 0:03:33]} 16. h3 {[%emt 0:04:03]} Bf8 {[%emt 0:12:26]} 17. Re2 {[%emt 0:12:04]} b5 {[%emt 0:09:18]} 18. cxb5 {[%emt 0:01:14]} axb5 {[%emt 0:07:33]} 19. Ndxb5 {[%emt 0:03:27]} d5 {[%emt 0:02:02]} 20. exd5 {[%emt 0:33:17]} Nxd5 {[%emt 0:21:15]} 21. Nxd5 {[%emt 0:00:07]} Qxb5 {[%emt 0:00:03]} 22. Nf6+ {[%emt 0:08:53]} gxf6 {[%emt 0:01:31]} 23. Bxf6 {[%emt 0:00:07]} Qxd3 {[%emt 0:00:05]} 24. Rxd3 {[%emt 0:00:07]} Bh6 {[%emt 0:00:22]} 25. Re4 {[%emt 0:01:43]} Kf8 {[%emt 0:02:58]} 26. Red4 {[%emt 0:04:41]} Ke8 {[%emt 0:01:56]} 27. Rh4 {[%emt 0:00:11]} Bf8 {[%emt 0:00:45]} 28. Rxh7 {[%emt 0:00:05]} Rc1+ {[%emt 0:00:28]} 29. Kh2 {[%emt 0:00:05]} Rdc8 {[%emt 0:02:52]} 30. Rh8 {[%emt 0:00:25]} Bb5 {[%emt 0:00:41]} 31. Rd4 {[%emt 0:01:26]} R1c2 {[%emt 0:00:36]} 32. a4 {[%emt 0:01:28]} Bc6 {[%emt 0:00:19]} 33. Kg3 {[%emt 0:03:00]} Rc3+ {[%emt 0:01:26]} 34. f3 {[%emt 0:00:05]} Rxb3 {[%emt 0:00:05]} 35. Be5 {[%emt 0:01:04]} f5 {[%emt 0:01:02]} 36. Rdh4 {[%emt 0:02:12]} Rd8 {[%emt 0:01:31]} 37. a5 {[%emt 0:01:40]} Rb5 {[%emt 0:01:28]} 38. Bf4 {[%emt 0:00:07]} e5 {[%emt 0:00:28]} 39. Bg5 {[%emt 0:05:52]} f4+ {[%emt 0:00:19]} 40. Kh2 {[%emt 0:00:00]} Rd7 {[%emt 0:00:00]} 41. R4h6 {[%emt 0:04:57]} Bd5 {[%emt 0:08:01]} 42. Rf6 {[%emt 0:00:39]} Rf7 {[%emt 0:00:09]} 43. Rd6 {[%emt 0:00:17]} Rd7 {[%emt 0:03:22]} 44. Rxf8+ {[%emt 0:02:39]} Kxf8 {[%emt 0:00:51]} 45. Rxd7 {[%emt 0:00:02]} Rxa5 {[%emt 0:00:05]} 46. h4 {[%emt 0:01:16]} Bf7 {[%emt 0:02:21]} 47. Rd6 {[%emt 0:00:37]} Rd5 {[%emt 0:00:57]} 48. Rb6 {[%emt 0:00:05]} Rd2 {[%emt 0:00:59]} 49. Kh3 {[%emt 0:04:34]} Bh5 {[%emt 0:01:48]} 50. Re6 {[%emt 0:06:20]} Rd1 {[%emt 0:09:20]} 51. Kh2 {[%emt 0:00:05]} Rd2 {[%emt 0:00:03]} 52. Kg1 {[%emt 0:00:03]} Rd5 {[%emt 0:00:02]} 53. Rh6 {[%emt 0:05:19]} Be8 {[%emt 0:05:17]} 54. Kh2 {[%emt 0:03:22]} Kg7 {[%emt 0:00:57]} 55. Re6 {[%emt 0:00:27]} Bf7 {[%emt 0:00:45]} 56. Rb6 {[%emt 0:00:21]} Bg6 {[%emt 0:01:07]} 57. Rb7+ {[%emt 0:03:28]} Kf8 {[%emt 0:00:46]} 58. Bh6+ {[%emt 0:01:20]} Ke8 {[%emt 0:00:02]} 59. Rg7 {[%emt 0:00:09]} Bf7 {[%emt 0:00:31]} 60. Rh7 {[%emt 0:02:48]} Bg6 {[%emt 0:01:14]} 61. Rh8+ {[%emt 0:00:10]} Kf7 {[%emt 0:00:15]} 62. Rf8+ {[%emt 0:00:24]} Ke6 {[%emt 0:00:14]} 63. Bg7 {[%emt 0:00:50]} Bf7 {[%emt 0:01:08]} 64. Rb8 {[%emt 0:01:09]} Bg6 {[%emt 0:00:32]} 65. Bh6 {[%emt 0:02:00]} Rd2 {[%emt 0:00:50]} 66. Rb6+ {[%emt 0:00:11]} Kf7 {[%emt 0:00:16]} 67. Bg5 {[%emt 0:00:29]} Re2 {[%emt 0:00:31]} 68. Rf6+ {[%emt 0:00:10]} Kg7 {[%emt 0:00:03]} 69. Kh3 {[%emt 0:00:27]} Be8 {[%emt 0:02:16]} 70. Kh2 {[%emt 0:00:36]} Bg6 {[%emt 0:00:04]} 71. Kg1 {[%emt 0:00:33]} Bf7 {[%emt 0:01:19]} 72. Rd6 {[%emt 0:00:59]} e4 {[%emt 0:01:31]} 73. fxe4 {[%emt 0:00:51]} Rxe4 {[%emt 0:00:01]} 74. Rf6 {[%emt 0:00:08]} Bd5 {[%emt 0:00:35]} 75. Rf5 {[%emt 0:00:32]} Be6 {[%emt 0:00:15]} 76. Rc5 {[%emt 0:00:11]} Bg4 {[%emt 0:00:10]} 77. Rc7+ {[%emt 0:00:54]} Kg6 {[%emt 0:00:05]} 78. Rc6+ {[%emt 0:00:04]} Kg7 {[%emt 0:00:07]} 79. Rf6 {[%emt 0:00:37]} Ra4 {[%emt 0:00:18]} 80. Kh2 {[%emt 0:00:09]} Rc4 {[%emt 0:00:06]} 81. Rxf4 {[%emt 0:00:48]} Rxf4 {[%emt 0:00:07]} 82. Bxf4 {[%emt 0:00:02]} Kg6 {[%emt 0:00:04]} 1/2-1/2

[Event "ROU-chT 1st League 2019"]
[Site "Mamaia"]
[Date "2019.09.29"]
[Round "9.30"]
[White "Stanciu, Andreea-Briana"]
[Black "Costachi, Mihnea"]
[Result "0-1"]
[ECO "C44"]
[WhiteElo "1884"]
[BlackElo "2463"]
[Annotator "ChessBase"]
[PlyCount "56"]
[EventDate "2019.09.21"]
[EventType "team-tourn"]
[EventCountry "ROU"]
[SourceTitle "playchess.com"]
[Source "ChessBase"]
[SourceQuality "1"]
[TimeControl "40/5400+30:1800+30"]

1. e4 {[%emt 0:00:00]} e5 {[%emt 0:00:00]} 2. Nf3 {[%emt 0:00:00]} Nc6 {[%emt 0:00:01]} 3. d4 {[%emt 0:00:00]} exd4 {[%emt 0:00:06]} 4. Nxd4 {[%emt 0:00:00]} Nf6 {[%emt 0:00:08]} 5. Nxc6 {[%emt 0:00:13]} bxc6 {[%emt 0:00:04]} 6. Bd3 {[%emt 0:00:06]} d5 {[%emt 0:07:08]} 7. exd5 {[%emt 0:05:22]} cxd5 {[%emt 0:00:51]} 8. Nc3 {[%emt 0:00:40]} Be7 {[%emt 0:03:20]} 9. O-O {[%emt 0:00:36]} O-O {[%emt 0:00:05]} 10. h3 {[%emt 0:00:21]} Rb8 {[%emt 0:11:01]} 11. Qf3 {[%emt 0:02:59]} Be6 {[%emt 0:06:20]} 12. b3 {[%emt 0:08:26]} c5 {[%emt 0:00:51]} 13. Bf4 {[%emt 0:01:48]} Bd6 {[%emt 0:00:13]} 14. Rfe1 {[%emt 0:11:47]} Bxf4 {[%emt 0:02:48]} 15. Qxf4 {[%emt 0:00:09]} Qa5 {[%emt 0:00:27]} 16. Qf3 {[%emt 0:02:59]} Kh8 {[%emt 0:01:04]} 17. Ne2 {[%emt 0:01:13]} c4 {[%emt 0:19:41]} 18. Bf5 {[%emt 0:01:39]} Bxf5 {[%emt 0:00:48]} 19. Qxf5 {[%emt 0:00:09]} Rbe8 {[%emt 0:01:32]} 20. c3 {[%emt 0:07:52]} Re4 {[%emt 0:01:51]} 21. Qg5 {[%emt 0:08:49]} Rfe8 {[%emt 0:00:41]} 22. Qd2 {[%emt 0:00:07]} cxb3 {[%emt 0:00:22]} 23. f3 Ra4 {[%emt 0:05:02]} 24. Nd4 {[%emt 0:21:14]} Rxe1+ {[%emt 0:03:13]} 25. Qxe1 {[%emt 0:01:02]} b2 {[%emt 0:02:03]} 26. Rb1 {[%emt 0:01:22]} Rxa2 {[%emt 0:00:06]} 27. Qe7 {[%emt 0:00:07]} Ra1 {[%emt 0:03:56]} 28. Qf8+ {[%emt 0:02:41]} Ng8 0-1